bitfinex-derivatives/quotes_BTCF0:USTF0_20240910
["timestamp","ask_amount","ask_price","bid_price","bid_amount"]
[1725999372301,0.086463,57825.0,57824.0,0.08581172]
[1725999372493,0.286463,57825.0,57824.0,0.08581172]
[1725999372891,0.086464,57824.0,57823.0,0.08581172]
[1725999373090,0.086464,57824.0,57823.0,0.19774455]
[1725999374493,0.086466,57823.0,57822.0,0.08581172]
[1725999374701,0.086466,57823.0,57822.0,0.19776175]
[1725999375303,0.086466,57823.0,57822.0,0.08581172]
[1725999375505,0.086467,57822.0,57821.0,0.13701172]
[1725999375694,0.086469,57821.0,57820.0,0.08581172]
[1725999375892,0.08647,57820.0,57819.0,0.08581172]
[1725999376091,0.08447,57820.0,57819.0,0.19790476]
[1725999376292,0.086472,57819.0,57818.0,0.08581172]
[1725999376507,0.286472,57819.0,57818.0,0.1978808]
[1725999376806,0.279472,57819.0,57818.0,0.1978808]
[1725999377008,0.277472,57819.0,57818.0,0.11206908]
[1725999377400,0.270472,57819.0,57818.0,0.11206908]
[1725999377907,0.357944,57819.0,57818.0,0.20480922]
[1725999378212,0.357944,57819.0,57818.0,0.007]
[1725999378611,0.158944,57819.0,57818.0,0.011]
[1725999378810,0.358944,57819.0,57818.0,0.011]
[1725999379709,0.08648,57814.0,57809.0,0.08974014]
[1725999379901,1.391352,57819.0,57803.0,0.0047]
[1725999379902,0.086493,57805.0,57803.0,0.08574014]
[1725999380104,0.086499,57801.0,57800.0,0.08574014]
[1725999380301,0.086496,57803.0,57795.0,0.08574014]
[1725999380500,0.086511,57793.0,57790.0,0.08574014]
[1725999380709,0.086513,57792.0,57788.0,0.0496]
[1725999380906,0.2,57789.0,57788.0,0.0496]
[1725999381204,0.2,57789.0,57783.0,0.0127]
[1725999381205,0.2,57789.0,57783.0,0.086526]
[1725999381396,0.2,57784.0,57783.0,0.086526]
[1725999381802,0.2,57787.0,57786.0,0.086521]
[1725999382008,0.086509,57795.0,57781.0,0.07548805]
[1725999382009,0.2,57791.0,57789.0,0.086517]
[1725999382201,0.2,57795.0,57791.0,0.086513]
[1725999382805,0.001,57792.0,57791.0,0.086513]
[1725999383301,0.2,57795.0,57791.0,0.086513]
[1725999383508,0.201,57795.0,57791.0,0.086513]
[1725999384103,0.201,57795.0,57782.0,0.004]
[1725999384104,0.001,57792.0,57782.0,0.004]
[1725999384304,0.2,57786.0,57785.0,0.086523]
[1725999385119,0.2,57789.0,57788.0,0.086517]
[1725999386605,0.201,57789.0,57779.0,0.090531]
[1725999386804,0.201,57789.0,57774.0,0.0566]
[1725999386805,0.2,57782.0,57774.0,0.0566]
[1725999387012,0.2,57775.0,57774.0,0.139139]
[1725999387413,0.1011,57788.0,57774.0,0.0526]
[1725999387616,0.02502732,57788.0,57787.0,0.08652]
[1725999387828,0.202,57789.0,57788.0,0.086518]
[1725999388213,0.201,57789.0,57788.0,0.086518]
[1725999388517,0.22542088,57789.0,57788.0,0.086518]
[1725999388908,0.22642088,57789.0,57788.0,0.086518]
[1725999390918,0.22742088,57789.0,57788.0,0.086518]
[1725999397221,0.2,57801.0,57788.0,0.259554]
[1725999397418,0.02550442,57802.0,57801.0,0.086499]
[1725999397614,0.2,57807.0,57806.0,0.086491]
[1725999398013,0.20092,57811.0,57803.0,0.086496]
[1725999398213,0.2,57811.0,57810.0,0.086485]
[1725999398419,0.22535652,57811.0,57810.0,0.086485]
[1725999399320,0.20851073,57815.0,57814.0,0.086479]
[1725999399523,0.006,57811.0,57806.0,0.2]
[1725999399829,0.006,57811.0,57810.0,0.086485]
[1725999400412,0.02,57811.0,57810.0,0.086485]
[1725999401021,0.006,57811.0,57810.0,0.086485]
[1725999401223,0.012,57811.0,57810.0,0.086485]
[1725999401722,0.012,57811.0,57810.0,0.11099567]
[1725999401919,0.007,57811.0,57810.0,0.19848067]
[1725999402130,0.004,57822.0,57821.0,0.086469]
[1725999402324,0.2,57823.0,57822.0,0.086467]
[1725999402621,0.2253601,57823.0,57822.0,0.086467]
[1725999402822,0.334741,57829.0,57828.0,0.086458]
[1725999402823,0.3261,57829.0,57828.0,0.086458]
[1725999403020,0.02527491,57829.0,57828.0,0.086458]
[1725999403228,0.204,57831.0,57819.0,0.086472]
[1725999403229,0.204,57831.0,57830.0,0.086455]
[1725999403417,0.2,57831.0,57830.0,0.086455]
[1725999403731,0.22523482,57831.0,57830.0,0.086455]
[1725999405918,0.23923482,57831.0,57830.0,0.086455]
[1725999406130,0.25123482,57831.0,57830.0,0.087455]
[1725999410122,0.25123482,57831.0,57820.0,0.004]
[1725999410123,0.086469,57821.0,57820.0,0.004]
[1725999410327,0.086468,57822.0,57810.0,0.004]
[1725999410628,0.2,57812.0,57810.0,0.004]
[1725999411015,0.086484,57811.0,57810.0,0.004]
[1725999411626,0.086484,57811.0,57810.0,0.005]
[1725999412024,0.086484,57811.0,57810.0,0.004]
[1725999412334,0.091484,57811.0,57810.0,0.004]
[1725999412625,0.086484,57811.0,57810.0,0.004]
[1725999412827,0.090484,57811.0,57810.0,0.004]
[1725999413324,0.176968,57811.0,57810.0,0.004]
[1725999414127,0.178968,57811.0,57810.0,0.004]
[1725999414323,1.297888,57811.0,57810.0,0.004]
[1725999414527,0.08649,57807.0,57806.0,0.004]
[1725999414724,0.28649,57807.0,57792.0,0.141312]
[1725999414921,0.2,57794.0,57792.0,0.137312]
[1725999415121,0.0529,57810.0,57792.0,0.137312]
[1725999415122,0.086505,57797.0,57792.0,0.137312]
[1725999415331,0.2,57794.0,57792.0,0.137312]
[1725999416021,0.28651,57794.0,57792.0,0.0508]
[1725999416221,0.086511,57793.0,57792.0,0.0508]
[1725999416626,0.2,57794.0,57792.0,0.0508]
[1725999417028,0.086505,57797.0,57793.0,0.086511]
[1725999418226,0.086505,57797.0,57792.0,0.0508]
[1725999418427,0.2,57798.0,57792.0,0.0508]
[1725999418623,0.086509,57795.0,57792.0,0.137312]
[1725999418831,0.086509,57795.0,57792.0,0.0508]
[1725999419028,0.001,57797.0,57794.0,0.086508]
[1725999419440,0.086507,57796.0,57794.0,0.086508]
[1725999420531,0.086507,57796.0,57795.0,0.086508]
[1725999420730,0.2,57802.0,57792.0,0.0508]
[1725999420928,0.0246405,57804.0,57802.0,0.086496]
[1725999421125,0.086499,57801.0,57793.0,0.08557467]
[1725999421533,0.086499,57801.0,57794.0,0.06]
[1725999422037,0.086499,57801.0,57800.0,0.0865]
[1725999422348,0.01,57804.0,57803.0,0.086496]
[1725999423033,0.01,57804.0,57803.0,0.146496]
[1725999423235,0.01,57804.0,57803.0,0.086496]
[1725999423536,0.017,57804.0,57803.0,0.086496]
[1725999423834,0.017,57804.0,57795.0,0.22378267]
[1725999423835,0.007,57804.0,57801.0,0.086498]
[1725999424034,0.086503,57799.0,57796.0,0.086506]
[1725999424233,0.2,57802.0,57795.0,0.086508]
[1725999424537,0.2,57802.0,57796.0,0.086506]
[1725999424538,0.086505,57797.0,57796.0,0.086506]
[1725999425336,0.086502,57799.0,57798.0,0.086503]
[1725999425639,0.0253046,57802.0,57801.0,0.086499]
[1725999425838,0.2,57806.0,57801.0,0.086499]
[1725999426037,0.086497,57802.0,57801.0,0.086499]
[1725999428041,0.086503,57799.0,57793.0,0.08557467]
[1725999428228,0.086503,57799.0,57792.0,0.0508]
[1725999428229,0.086503,57799.0,57792.0,0.13637467]
[1725999428429,0.086503,57799.0,57797.0,0.06874946]
[1725999429444,0.086503,57799.0,57798.0,0.086503]
[1725999429856,0.088503,57799.0,57798.0,0.086503]
[1725999430142,0.089503,57799.0,57798.0,0.086503]
[1725999430945,0.004,57799.0,57798.0,0.086503]
[1725999432133,0.002,57799.0,57798.0,0.086503]
[1725999432342,0.006,57799.0,57798.0,0.086503]
[1725999432848,0.086501,57800.0,57799.0,0.086502]
[1725999433630,0.2,57802.0,57801.0,0.086499]
[1725999433838,0.086496,57804.0,57803.0,0.086496]
[1725999435738,0.086501,57800.0,57799.0,0.086501]
[1725999435936,0.2,57801.0,57800.0,0.0865]
[1725999436534,0.008,57804.0,57803.0,0.172992]
[1725999436731,0.008,57804.0,57803.0,0.15533759]
[1725999436935,0.006,57804.0,57803.0,0.086496]
[1725999437145,0.2,57809.0,57808.0,0.086488]
[1725999438744,0.286487,57809.0,57808.0,0.086488]
[1725999439237,0.286487,57809.0,57808.0,0.19965309]
[1725999439441,0.298487,57809.0,57808.0,0.19965309]
[1725999439642,0.298487,57809.0,57808.0,0.28593249]
[1725999440142,0.32465629,57809.0,57808.0,0.28596798]
[1725999440538,0.32465629,57809.0,57808.0,0.19947998]
[1725999440739,0.33365629,57809.0,57808.0,0.0862794]
[1725999441048,0.172976,57808.0,57807.0,0.0862794]
[1725999441237,0.172976,57808.0,57807.0,0.19954529]
[1725999441441,0.08649,57807.0,57806.0,0.0862794]
[1725999441643,0.28649,57807.0,57806.0,0.0862794]
[1725999441845,0.28649,57807.0,57806.0,0.1995792]
[1725999442654,0.29549,57807.0,57806.0,0.1997908]
[1725999443950,0.30349,57807.0,57806.0,0.1997908]
[1725999445247,0.30349,57807.0,57806.0,0.086491]
[1725999445463,0.31249,57807.0,57806.0,0.086491]
[1725999446545,0.29149,57807.0,57806.0,0.086491]
[1725999446750,0.29449,57807.0,57806.0,0.086491]
[1725999447453,0.008,57807.0,57806.0,0.086491]
[1725999447656,0.005,57807.0,57806.0,0.086491]
[1725999447960,0.02506236,57811.0,57810.0,0.086485]
[1725999448148,0.086484,57811.0,57810.0,0.086485]
[1725999449744,0.087484,57811.0,57810.0,0.086485]
[1725999450150,0.086484,57811.0,57810.0,0.086485]
[1725999450351,0.090484,57811.0,57810.0,0.086485]
[1725999450558,0.091484,57811.0,57810.0,0.086485]
[1725999451060,0.005,57811.0,57810.0,0.086485]
[1725999451359,0.004,57811.0,57810.0,0.086485]
[1725999451555,0.007,57811.0,57810.0,0.086485]
[1725999451767,0.004,57811.0,57810.0,0.086485]
[1725999452158,0.004,57811.0,57810.0,0.15551454]
[1725999452355,0.003,57811.0,57810.0,0.19969526]
[1725999452559,0.007,57811.0,57810.0,0.19969526]
[1725999453465,0.004,57811.0,57810.0,0.19969526]
[1725999453762,0.007,57811.0,57810.0,0.19969526]
[1725999454350,0.093484,57811.0,57810.0,0.19969526]
[1725999454551,0.093484,57811.0,57810.0,0.28597257]
[1725999454747,0.007,57811.0,57810.0,0.28597257]
[1725999454962,0.007,57811.0,57810.0,0.19969526]
[1725999455661,0.008,57811.0,57810.0,0.19969526]
[1725999456162,0.003,57811.0,57810.0,0.19969526]
[1725999456366,0.007,57811.0,57810.0,0.19969526]
[1725999456955,0.008,57811.0,57810.0,0.19969526]
[1725999458255,0.004,57811.0,57810.0,0.19969526]
[1725999458462,0.009,57811.0,57810.0,0.19969526]
[1725999458962,0.011,57811.0,57810.0,0.19969526]
[1725999459460,0.007,57811.0,57810.0,0.19969526]
[1725999459650,0.013,57811.0,57810.0,0.19969526]
[1725999460863,0.013,57811.0,57810.0,0.30266933]
[1725999461158,0.013,57811.0,57810.0,0.19969526]
[1725999461954,0.006,57811.0,57810.0,0.19969526]
[1725999462159,0.013,57811.0,57810.0,0.19969526]
[1725999462356,0.099484,57811.0,57810.0,0.19969526]
[1725999462761,0.093484,57811.0,57810.0,0.30324216]
[1725999462963,0.099484,57811.0,57810.0,0.30324216]
[1725999463151,0.099484,57811.0,57810.0,0.19969526]
[1725999463554,0.099484,57811.0,57810.0,0.30324908]
[1725999463756,0.099484,57811.0,57810.0,0.19969526]
[1725999464156,0.013,57811.0,57810.0,0.19969526]
[1725999466258,0.006,57811.0,57810.0,0.33456581]
[1725999466458,0.013,57811.0,57810.0,0.33456581]
[1725999467465,0.007,57811.0,57810.0,0.086485]
[1725999467668,0.013,57811.0,57810.0,0.086485]
[1725999468867,0.006,57811.0,57810.0,0.086485]
[1725999469064,0.011,57811.0,57810.0,0.086485]
[1725999469671,0.013,57811.0,57810.0,0.086485]
[1725999471267,0.092484,57811.0,57810.0,0.086485]
[1725999471559,0.099484,57811.0,57810.0,0.086485]
[1725999472269,0.099484,57811.0,57810.0,0.15553477]
[1725999472465,0.092484,57811.0,57810.0,0.086485]
[1725999472662,0.091484,57811.0,57810.0,0.086485]
[1725999472862,0.094484,57811.0,57810.0,0.086485]
[1725999473169,0.094484,57811.0,57810.0,0.15553477]
[1725999473468,0.094484,57811.0,57810.0,0.086485]
[1725999473670,0.097484,57811.0,57810.0,0.086485]
[1725999474163,0.097484,57811.0,57810.0,0.15553477]
[1725999475163,0.099484,57811.0,57810.0,0.15553477]
[1725999475365,0.099484,57811.0,57810.0,0.30336723]
[1725999476772,0.099484,57811.0,57810.0,0.21688223]
[1725999477071,0.099484,57811.0,57810.0,0.30336723]
[1725999478266,0.099484,57811.0,57810.0,0.30344985]
[1725999479568,0.100484,57811.0,57810.0,0.30344985]
[1725999479772,0.186968,57811.0,57810.0,0.11337727]
[1725999480075,0.186968,57811.0,57808.0,0.08643004]
[1725999480076,0.172974,57809.0,57808.0,0.08643004]
[1725999480261,0.286488,57808.0,57806.0,0.08643004]
[1725999480467,0.286488,57808.0,57805.0,0.08643004]
[1725999480468,0.086491,57806.0,57805.0,0.08643004]
[1725999480669,0.29499541,57806.0,57805.0,0.08643004]
[1725999480966,0.38148641,57806.0,57805.0,0.08643004]
[1725999481465,0.38148641,57806.0,57803.0,0.08643004]
[1725999481466,0.086494,57804.0,57803.0,0.08643004]
[1725999481670,0.286494,57804.0,57803.0,0.08643004]
[1725999483074,0.294494,57804.0,57803.0,0.08643004]
[1725999484477,0.304494,57804.0,57803.0,0.08643004]
[1725999484674,0.304494,57804.0,57802.0,0.08643004]
[1725999484675,0.086496,57803.0,57802.0,0.08643004]
[1725999484878,0.086497,57802.0,57801.0,0.086499]
[1725999486070,0.093497,57802.0,57801.0,0.086499]
[1725999486777,0.099497,57802.0,57801.0,0.086499]
[1725999487576,0.099497,57802.0,57801.0,0.17274542]
[1725999488572,0.013,57802.0,57801.0,0.17274542]
[1725999488778,0.013,57802.0,57801.0,0.086499]
[1725999489779,0.099497,57802.0,57801.0,0.086499]
[1725999489986,0.299497,57802.0,57801.0,0.17267745]
[1725999490176,0.385994,57802.0,57801.0,0.08617845]
[1725999490370,0.385994,57802.0,57792.0,0.045]
[1725999490371,0.086499,57801.0,57800.0,0.08617845]
[1725999490583,0.086499,57801.0,57793.0,0.06892457]
[1725999490584,0.086505,57797.0,57796.0,0.05169343]
[1725999490773,0.2,57797.0,57795.0,0.05169201]
[1725999491081,0.086511,57793.0,57792.0,0.05169201]
[1725999491270,0.286511,57793.0,57789.0,0.05169201]
[1725999491471,0.286511,57793.0,57787.0,0.05169201]
[1725999491472,0.0962,57792.0,57787.0,0.05169201]
[1725999491671,0.08652,57787.0,57786.0,0.05169201]
[1725999492377,0.086521,57786.0,57785.0,0.13821401]
[1725999492573,0.2,57788.0,57787.0,0.08652]
[1725999492779,0.086517,57789.0,57787.0,0.08652]
[1725999493176,0.086521,57786.0,57785.0,0.05169201]
[1725999493375,0.086521,57786.0,57781.0,0.12142457]
[1725999493376,0.086521,57786.0,57784.0,0.13821601]
[1725999493680,0.086521,57786.0,57785.0,0.086523]
[1725999494280,0.001,57787.0,57786.0,0.086521]
[1725999494974,0.001,57789.0,57788.0,0.086517]
[1725999495375,0.087517,57789.0,57788.0,0.086517]
[1725999495775,0.086517,57789.0,57788.0,0.086517]
[1725999495978,0.02522315,57792.0,57791.0,0.086514]
[1725999496182,0.2,57795.0,57794.0,0.086509]
[1725999496382,0.086508,57796.0,57794.0,0.086509]
[1725999496584,0.086508,57796.0,57795.0,0.0475]
[1725999497985,0.286508,57796.0,57795.0,0.0475]
[1725999498179,0.286508,57796.0,57795.0,0.134008]
[1725999498775,0.086508,57796.0,57795.0,0.134008]
[1725999499777,0.11159918,57796.0,57795.0,0.134008]
[1725999499976,0.02509118,57796.0,57795.0,0.134008]
[1725999500281,0.086503,57799.0,57798.0,0.086503]
[1725999500586,0.086505,57797.0,57796.0,0.06887638]
[1725999500788,0.086506,57796.0,57795.0,0.20288438]
[1725999501085,0.086506,57796.0,57795.0,0.134008]
[1725999501471,0.086506,57796.0,57795.0,0.0475]
[1725999501674,0.286506,57796.0,57795.0,0.0475]
[1725999502370,0.086502,57799.0,57795.0,0.0475]
[1725999502579,0.086502,57799.0,57798.0,0.086503]
[1725999503981,0.086503,57798.0,57797.0,0.06887638]
[1725999505179,0.086506,57796.0,57795.0,0.0475]
[1725999509189,0.086506,57796.0,57795.0,0.134008]
[1725999512402,0.086506,57796.0,57795.0,0.194008]
[1725999512588,0.086506,57796.0,57795.0,0.30653697]
[1725999513788,0.086506,57796.0,57795.0,0.24653697]
[1725999515896,0.086506,57796.0,57795.0,0.2465618]
[1725999517698,0.2,57799.0,57795.0,0.1600538]
[1725999517891,0.286502,57799.0,57798.0,0.17277732]
[1725999518087,0.286502,57799.0,57798.0,0.28534815]
[1725999518692,0.286502,57799.0,57798.0,0.19907383]
[1725999519197,0.290502,57799.0,57798.0,0.19907383]
[1725999519597,0.090502,57799.0,57798.0,0.19907383]
[1725999519805,0.092502,57799.0,57798.0,0.19907383]
[1725999520694,0.12054852,57799.0,57798.0,0.086503]
[1725999520900,0.12054864,57799.0,57798.0,0.086503]
[1725999522199,0.03404664,57799.0,57798.0,0.086503]
[1725999522396,0.03404664,57799.0,57798.0,0.173006]
[1725999522700,0.006,57799.0,57798.0,1.292046]
[1725999522907,0.10373266,57807.0,57803.0,0.086496]
[1725999523092,0.02804147,57806.0,57805.0,0.086493]
[1725999523293,0.10373266,57809.0,57808.0,0.086488]
[1725999523496,0.02568858,57811.0,57810.0,0.086485]
[1725999523497,0.12942124,57811.0,57810.0,0.086485]
[1725999523798,0.02804029,57811.0,57810.0,0.086485]
[1725999524107,0.10373266,57814.0,57813.0,0.086481]
[1725999524495,0.12077972,57822.0,57812.0,0.2]
[1725999524496,0.10373266,57818.0,57812.0,0.2]
[1725999524897,0.02510171,57820.0,57812.0,0.2]
[1725999525107,0.02510171,57820.0,57809.0,0.096]
[1725999525108,0.0280359,57819.0,57818.0,0.086473]
[1725999525395,0.13774431,57834.0,57817.0,0.2]
[1725999525396,0.12917026,57825.0,57824.0,0.086464]
[1725999525599,0.0280344,57825.0,57821.0,0.2]
[1725999525799,0.10373266,57828.0,57824.0,0.086464]
[1725999526000,0.02803313,57827.0,57824.0,0.086464]
[1725999526301,0.19018966,57829.0,57824.0,0.086464]
[1725999526302,0.02803313,57826.0,57824.0,0.086464]
[1725999526510,0.086457,57829.0,57824.0,0.086464]
[1725999527002,0.013,57825.0,57824.0,0.086464]
[1725999528104,0.013,57825.0,57824.0,0.087464]
[1725999528495,0.013,57825.0,57824.0,0.086464]
[1725999528699,0.027,57825.0,57824.0,0.087464]
[1725999529304,0.100463,57825.0,57824.0,0.001]
[1725999530101,0.114463,57825.0,57824.0,0.001]
[1725999535603,0.14249628,57825.0,57824.0,0.001]
[1725999537117,0.24560572,57825.0,57824.0,0.001]
[1725999537909,0.22895928,57825.0,57824.0,0.001]
[1725999539410,0.27292158,57825.0,57824.0,0.001]
[1725999539812,0.22895928,57825.0,57824.0,0.001]
[1725999540012,0.2729549,57825.0,57824.0,0.001]
[1725999540314,0.114463,57825.0,57824.0,0.001]
[1725999540515,0.14249866,57825.0,57824.0,0.001]
[1725999542719,0.114463,57825.0,57824.0,0.001]
[1725999543316,0.028,57825.0,57824.0,0.373928]
[1725999543620,0.028,57825.0,57824.0,0.287464]
[1725999544930,0.028,57825.0,57824.0,0.373928]
[1725999545923,0.004,57834.0,57833.0,0.086451]
[1725999546111,0.2,57835.0,57826.0,0.05145992]
[1725999546312,0.0939,57842.0,57827.0,0.086459]
[1725999546313,0.08646,57828.0,57827.0,0.086459]
[1725999546516,0.2,57830.0,57824.0,0.05245992]
[1725999546718,0.286463,57825.0,57824.0,0.001]
[1725999547829,0.286463,57825.0,57824.0,0.087464]
[1725999548214,0.2,57833.0,57820.0,0.2]
[1725999548420,0.086454,57832.0,57822.0,0.05145992]
[1725999548726,0.2,57829.0,57820.0,0.05145992]
[1725999549228,0.003,57825.0,57824.0,0.087464]
[1725999549425,0.003,57825.0,57824.0,0.088464]
[1725999549943,0.2,57829.0,57828.0,0.086458]
[1725999550119,0.203,57829.0,57828.0,0.086458]
[1725999551126,0.21,57829.0,57828.0,0.086458]
[1725999551521,0.2,57829.0,57828.0,0.086458]
[1725999551719,0.207,57829.0,57828.0,0.087458]
[1725999552533,0.221,57829.0,57828.0,0.088458]
[1725999556236,0.42194711,57829.0,57828.0,0.002]
[1725999556425,0.43139011,57829.0,57828.0,0.002]
[1725999556622,0.53501825,57829.0,57828.0,0.002]
[1725999556936,0.43139011,57829.0,57828.0,0.002]
[1725999557235,0.53501825,57829.0,57828.0,0.002]
[1725999557425,0.43139011,57829.0,57828.0,0.002]
[1725999557631,0.403357,57829.0,57828.0,0.002]
[1725999558025,0.357357,57829.0,57828.0,0.002]
[1725999559431,0.443814,57829.0,57828.0,0.002]
[1725999559631,0.357357,57829.0,57828.0,0.002]
[1725999564925,0.307457,57829.0,57828.0,0.002]
[1725999565237,0.107457,57829.0,57828.0,0.088458]
[1725999572742,0.107457,57829.0,57828.0,0.15744375]
[1725999574041,0.107457,57829.0,57828.0,0.088458]
[1725999574542,0.107457,57829.0,57828.0,0.07102345]
[1725999576352,0.004,57839.0,57829.0,0.51876]
[1725999576644,0.004,57841.0,57840.0,0.086441]
[1725999576831,0.004,57852.0,57851.0,0.086424]
[1725999577034,0.02455151,57853.0,57850.0,0.08618291]
[1725999577343,0.286415,57858.0,57852.0,0.06883099]
[1725999577648,0.286415,57858.0,57856.0,0.05162315]
[1725999578347,0.31127717,57858.0,57854.0,0.05162315]
[1725999578531,0.31527717,57858.0,57854.0,0.05162315]
[1725999579143,0.31527717,57858.0,57856.0,0.001]
[1725999580132,0.31527717,57858.0,57856.0,0.002]
[1725999580844,0.02801935,57857.0,57856.0,0.001]
[1725999581037,0.11443435,57857.0,57856.0,0.001]
[1725999581438,0.11443435,57857.0,57856.0,0.002]
[1725999581855,0.11443435,57857.0,57856.0,0.001]
[1725999582045,0.11743435,57857.0,57856.0,0.002]
[1725999582949,0.11743435,57857.0,57856.0,0.001]
[1725999583252,0.03201935,57857.0,57856.0,0.002]
[1725999583459,0.03201935,57857.0,57856.0,0.088417]
[1725999584053,0.004,57857.0,57856.0,0.088417]
[1725999586053,0.204,57857.0,57856.0,0.088417]
[1725999587357,0.290415,57857.0,57856.0,0.002]
[1725999587648,0.204,57857.0,57856.0,0.088417]
[1725999587952,0.290415,57857.0,57856.0,0.088417]
[1725999592949,0.290415,57857.0,57856.0,0.002]
[1725999593155,0.37683,57857.0,57856.0,0.002]
[1725999594747,0.17683,57857.0,57856.0,0.002]
[1725999594949,0.37683,57857.0,57856.0,0.002]
[1725999595154,0.290415,57857.0,57856.0,0.002]
[1725999595457,0.004,57857.0,57856.0,0.088417]
[1725999595755,0.10708378,57857.0,57856.0,0.088417]
[1725999595950,0.13510263,57857.0,57856.0,0.088417]
[1725999597051,0.03201885,57857.0,57856.0,0.174834]
[1725999597250,0.004,57857.0,57856.0,0.174834]
[1725999597754,0.004,57857.0,57856.0,0.088417]
[1725999598655,0.03201722,57857.0,57856.0,0.088417]
[1725999600153,0.135101,57857.0,57856.0,0.088417]
[1725999602256,0.03201722,57857.0,57856.0,0.088417]
[1725999602853,0.004,57857.0,57856.0,0.174834]
[1725999603060,0.004,57857.0,57856.0,0.27445715]
[1725999603355,0.004,57857.0,57856.0,0.222834]
[1725999604353,0.004,57857.0,57856.0,0.29166499]
[1725999604560,0.004,57864.0,57856.0,0.29166499]
[1725999604561,0.004,57864.0,57863.0,0.259218]
[1725999604862,0.998,57870.0,57863.0,0.259218]
[1725999604863,0.998,57870.0,57869.0,0.172794]
[1725999605064,0.30327,57870.0,57869.0,1.577591]
[1725999605255,0.30327,57870.0,57869.0,1.62053541]
[1725999605256,0.14382758,57870.0,57869.0,1.62053541]
[1725999605458,0.14382758,57870.0,57869.0,1.74844629]
[1725999605657,0.004,57879.0,57878.0,0.259152]
[1725999605857,1.0,57885.0,57884.0,0.086375]
[1725999606058,1.0,57885.0,57884.0,0.99723029]
[1725999606366,1.0,57885.0,57884.0,1.51551029]
[1725999606560,1.0,57885.0,57884.0,0.19723029]
[1725999606862,1.0,57885.0,57884.0,1.40063516]
[1725999607057,1.0,57885.0,57884.0,1.3150091]
[1725999607257,0.510904,57885.0,57884.0,1.3150091]
[1725999607456,0.128641,57885.0,57884.0,1.3150091]
[1725999607660,1e-06,57885.0,57884.0,1.3150091]
[1725999607858,4e-05,57900.0,57899.0,0.086352]
[1725999608063,4e-05,57900.0,57899.0,0.33765468]
[1725999608272,4e-05,57900.0,57899.0,1.4557655]
[1725999608561,4e-05,57900.0,57899.0,1.404472]
[1725999609456,4e-05,57900.0,57899.0,1.45762108]
[1725999609656,4e-05,57900.0,57899.0,1.406472]
[1725999610571,4e-05,57900.0,57899.0,1.45755277]
[1725999610865,4e-05,57900.0,57899.0,1.406472]
[1725999611266,4e-05,57900.0,57899.0,1.405472]
[1725999611464,4e-05,57900.0,57899.0,1.42616996]
[1725999611862,4e-05,57900.0,57899.0,1.42516996]
[1725999612067,0.00104,57900.0,57899.0,1.42616996]
[1725999612664,0.00104,57900.0,57899.0,0.10804996]
[1725999612866,0.00104,57900.0,57899.0,0.002]
[1725999613463,0.00104,57900.0,57899.0,0.20100807]
[1725999613464,0.02903676,57900.0,57899.0,0.20100807]
[1725999613769,0.00104,57900.0,57899.0,0.00100807]
[1725999615464,4e-05,57900.0,57899.0,8.07e-06]
[1725999615666,0.00104,57900.0,57899.0,0.00100807]
[1725999616071,1.11916,57900.0,57885.0,0.004]
[1725999616265,0.2,57889.0,57879.0,0.090382]
[1725999616468,0.2,57889.0,57879.0,0.086382]
[1725999616972,0.286376,57884.0,57871.0,0.086393]
[1725999617668,0.086376,57884.0,57873.0,0.2]
[1725999617975,0.086376,57884.0,57879.0,0.007]
[1725999618472,0.2506,57888.0,57879.0,0.007]
[1725999618668,0.27072744,57888.0,57877.0,0.086385]
[1725999618871,0.27072744,57888.0,57878.0,0.086383]
[1725999619078,0.07072744,57888.0,57879.0,0.001]
[1725999619267,0.2473,57891.0,57879.0,0.001]
[1725999619468,0.001,57884.0,57882.0,0.086377]
[1725999620670,0.001,57884.0,57883.0,0.51828]
[1725999620873,0.0473,57891.0,57883.0,1.11828]
[1725999621170,0.0473,57891.0,57881.0,0.2]
[1725999621659,0.004,57884.0,57881.0,0.086378]
[1725999621863,0.004,57884.0,57882.0,0.086377]
[1725999622077,0.002,57884.0,57882.0,0.086377]
[1725999622369,0.002,57884.0,57882.0,0.604657]
[1725999622764,0.002,57884.0,57882.0,0.086377]
[1725999622963,0.001,57884.0,57882.0,0.086377]
[1725999623471,0.003,57884.0,57877.0,0.086384]
[1725999623672,0.003,57884.0,57875.0,0.02026161]
[1725999623875,0.003,57884.0,57878.0,0.2]
[1725999624673,0.001,57884.0,57881.0,0.086378]
[1725999624869,0.005,57884.0,57881.0,0.086378]
[1725999625270,0.005,57884.0,57874.0,0.2]
[1725999625271,0.001,57884.0,57875.0,0.086388]
[1725999625470,0.086369,57888.0,57878.0,0.001]
[1725999625661,0.086371,57887.0,57878.0,0.087383]
[1725999625864,0.086371,57887.0,57878.0,0.147383]
[1725999626071,0.086371,57887.0,57878.0,0.19746377]
[1725999626281,0.003,57884.0,57878.0,0.19746377]
[1725999626475,0.003,57884.0,57879.0,0.05108077]
[1725999626679,0.003,57884.0,57878.0,0.146383]
[1725999626680,0.2,57880.0,57878.0,0.11108077]
[1725999626972,0.003,57884.0,57875.0,0.05108077]
[1725999626973,0.2,57879.0,57875.0,0.05108077]
[1725999627173,0.286382,57879.0,57878.0,0.003]
[1725999627374,0.086388,57875.0,57873.0,0.05108077]
[1725999627575,0.2,57872.0,57867.0,0.05122925]